bitfinex/quotes_ETHUSD_20241124
["timestamp","ask_amount","ask_price","bid_price","bid_amount"]
[1732448991643,8.99,3351.4,3350.6,3.0]
[1732448992131,0.06439763,3351.3,3350.6,3.0]
[1732448992628,0.06439763,3351.3,3350.1,0.7818]
[1732448993017,0.06439763,3351.3,3350.6,3.0]
[1732448993328,0.90543976,3351.2,3350.6,3.0]
[1732448993516,9.05439763,3351.3,3350.6,3.0]
[1732448993717,0.06440073,3351.1,3350.6,3.0]
[1732448994029,0.06440073,3351.0,3350.6,3.0]
[1732448994200,0.06440073,3351.0,3350.1,0.7818]
[1732448994538,0.55,3351.2,3350.5,3.0]
[1732448994733,0.06439143,3350.9,3350.5,3.0]
[1732448994936,8.99,3351.1,3350.4,3.0]
[1732448995408,0.06439143,3351.0,3350.4,3.0]
[1732448995614,0.06439143,3351.0,3349.9,0.1477655]
[1732448996235,0.55,3350.9,3349.9,0.1477655]
[1732448996403,1.01927248,3350.8,3349.9,0.1477655]
[1732448996733,0.06433873,3350.7,3349.9,0.1477655]
[1732448998435,0.06433873,3350.7,3350.1,3.0]
[1732448998853,8.99,3351.0,3350.1,3.0]
[1732448999020,0.06423642,3350.6,3350.4,3.0]
[1732448999352,0.06427673,3350.5,3350.4,3.0]
[1732448999513,8.99,3350.9,3350.4,3.0]
[1732448999717,0.06427673,3350.8,3350.0,0.7927]
[1732448999951,0.06427673,3350.8,3350.4,3.0]
[1732449000125,0.9697044,3350.8,3350.4,3.0]
[1732449000328,0.9697044,3350.8,3350.0,0.7927]
[1732449000528,0.9697044,3350.8,3350.0,1.15568113]
[1732449000824,0.9697044,3350.8,3349.9,0.1477655]
[1732449001366,0.06427673,3350.8,3350.4,0.8314]
[1732449002517,0.6006725,3351.4,3350.4,0.8314]
[1732449002713,0.06430773,3351.3,3350.9,3.0]
[1732449003719,8.99,3352.6,3350.4,0.8314]
[1732449003915,0.60866302,3352.1,3351.4,3.0]
[1732449004117,8.99,3352.6,3351.4,3.0]
[1732449004322,8.99,3352.6,3351.1,0.8314]
[1732449004323,8.99,3352.6,3352.0,3.0]
[1732449004569,0.06430773,3352.5,3352.2,3.0]
[1732449004752,0.06430773,3352.5,3352.0,0.8314]
[1732449004967,0.01591518,3352.9,3352.2,3.0]
[1732449006119,0.01591518,3352.9,3351.8,0.8314]
[1732449006542,0.01591518,3352.9,3351.8,1.20143685]
[1732449006742,0.01591518,3352.9,3352.2,3.0]
[1732449007266,0.01591518,3352.9,3351.8,1.20143685]
[1732449007564,0.01591518,3352.9,3352.2,3.0]
[1732449007756,0.01591518,3352.9,3351.8,1.20143685]
[1732449008060,0.01591518,3352.9,3352.0,3.0]
[1732449008353,0.55,3352.7,3351.1,0.8314]
[1732449008657,0.55,3352.5,3350.8,0.35785412]
[1732449008863,3.55,3352.3,3350.8,0.35785412]
[1732449009079,0.55,3352.1,3350.8,0.35785412]
[1732449009357,0.55,3352.1,3349.9,0.1477655]
[1732449009358,0.55,3351.3,3349.9,0.1477655]
[1732449009541,0.55,3351.1,3349.9,0.1477655]
[1732449009747,0.55,3350.9,3349.9,0.1477655]
[1732449010140,0.06508867,3350.8,3349.9,0.1477655]
[1732449010634,0.06508867,3350.8,3350.1,3.0]
[1732449011035,0.06508867,3350.8,3349.9,0.1477655]
[1732449011239,0.15690887,3350.7,3350.1,3.0]
[1732449011635,0.06472293,3350.6,3350.1,3.0]
[1732449012268,9.54,3350.5,3349.9,0.1477655]
[1732449012480,0.97616318,3350.4,3349.9,0.1477655]
[1732449012921,0.06472293,3350.3,3349.9,0.1477655]
[1732449014037,8.99,3350.5,3349.9,0.1477655]
[1732449014270,0.06472293,3350.2,3349.9,0.1477655]
[1732449014573,8.99,3351.8,3350.4,3.0]
[1732449014725,5.37,3352.7,3350.6,3.0]
[1732449014726,0.96372293,3351.7,3350.6,3.0]
[1732449014926,0.96372293,3351.7,3349.9,0.51728949]
[1732449014927,0.66563343,3351.7,3349.9,0.51728949]
[1732449015461,0.66563343,3351.7,3350.6,3.0]
[1732449016262,0.55,3351.6,3349.9,0.1477655]
[1732449016826,0.55,3351.4,3349.9,0.1477655]
[1732449017136,0.06472293,3351.3,3349.9,0.1477655]
[1732449017328,0.55,3351.2,3349.9,0.1477655]
[1732449017529,0.55,3351.2,3350.1,3.0]
[1732449017929,0.55,3351.0,3350.1,3.0]
[1732449018170,0.55,3350.8,3349.9,0.1477655]
[1732449018670,0.06472293,3350.7,3349.9,0.1477655]
[1732449018867,1.51047229,3350.6,3349.9,0.1477655]
[1732449019076,0.55,3350.6,3349.9,0.1477655]
[1732449019282,0.55,3350.4,3349.9,0.1477655]
[1732449019933,0.55,3350.2,3349.9,0.1477655]
[1732449020136,0.55,3350.0,3349.9,0.1477655]
[1732449020366,0.61472293,3350.0,3349.9,0.1477655]
[1732449020577,9.60472293,3350.0,3349.9,0.1477655]
[1732449020874,9.60472293,3350.0,3347.5,0.8314]
[1732449021074,0.55,3349.8,3347.5,0.8314]
[1732449021263,8.99,3349.7,3347.5,0.8314]
[1732449021581,0.61376806,3349.6,3347.5,0.8314]
[1732449022437,0.61376806,3349.6,3347.5,1.18955731]
[1732449022639,0.96037681,3349.5,3347.6,0.7503]
[1732449022847,8.99,3349.5,3348.4,0.7503]
[1732449023058,0.06376806,3349.4,3348.4,0.7503]
[1732449023373,8.99,3349.8,3348.4,0.7503]
[1732449023573,8.99,3349.8,3348.9,3.0]
[1732449023574,0.06376806,3349.7,3348.9,3.0]
[1732449023887,0.06376806,3349.7,3348.4,0.7503]
[1732449024173,0.06376806,3349.7,3348.9,3.0]
[1732449024407,0.96914487,3349.7,3348.9,3.0]
[1732449024536,0.96914487,3349.7,3348.4,0.7503]
[1732449024537,0.06376806,3349.7,3349.2,3.0]
[1732449026089,0.06376806,3349.7,3348.4,0.7503]
[1732449026271,9.89537681,3349.6,3348.0,0.36622001]
[1732449026472,8.99,3349.6,3347.8,0.7503]
[1732449026682,0.0634486,3349.5,3348.8,3.0]
[1732449026889,0.9624486,3349.5,3348.8,3.0]
[1732449027163,0.9624486,3349.5,3347.8,1.10348151]
[1732449027499,0.55,3349.4,3347.8,1.10348151]
[1732449027699,0.55,3349.2,3347.8,0.7503]
[1732449027866,0.06335552,3349.3,3347.8,0.7503]
[1732449028064,8.99,3349.4,3347.8,0.7503]
[1732449028299,0.06335552,3349.2,3347.8,0.7503]
[1732449028604,0.06335552,3349.1,3347.8,0.7503]
[1732449029805,0.06335552,3349.1,3348.2,3.0]
[1732449029974,0.06335552,3349.1,3347.8,0.7503]
[1732449030299,0.06335552,3349.0,3347.8,0.7503]
[1732449030509,9.05335552,3349.0,3347.8,0.7503]
[1732449030664,9.05335552,3349.0,3348.4,3.0]
[1732449030865,9.05335552,3349.0,3347.8,0.7503]
[1732449031102,9.05335552,3349.0,3348.4,3.0]
[1732449031403,0.90533555,3348.9,3348.1,3.0]
[1732449032575,8.99,3349.4,3348.1,3.0]
[1732449033938,0.55,3349.2,3348.1,3.0]
[1732449035513,8.99,3349.3,3348.1,3.0]
[1732449036141,8.99,3349.3,3348.2,0.7971]
[1732449036477,0.899,3349.2,3348.2,0.7971]
[1732449037040,0.899,3349.2,3348.1,3.0]
[1732449038425,9.889,3349.2,3348.1,3.0]
[1732449038734,8.99,3349.2,3348.1,3.0]
[1732449041578,0.55,3349.5,3348.1,2.7028]
[1732449041871,0.55,3349.3,3348.0,100.0]
[1732449042332,0.58203485,3348.6,3348.0,100.0]
[1732449043144,0.55,3349.1,3348.0,100.0]
[1732449043366,1.6053787,3349.1,3348.0,100.0]
[1732449043874,0.58316698,3348.8,3348.0,100.0]
[1732449047450,8.99,3348.7,3348.0,100.0]
[1732449049177,8.99,3348.7,3348.1,3.0]
[1732449049363,0.899,3348.6,3348.1,3.0]
[1732449049985,8.99,3350.2,3348.1,3.0]
[1732449050345,8.99,3350.2,3348.2,0.7996]
[1732449050588,0.1,3349.5,3348.1,3.0]
[1732449050744,0.1,3349.5,3348.0,100.0]
[1732449050745,0.60429604,3348.9,3348.0,100.0]
[1732449051340,0.55,3348.8,3348.0,100.0]
[1732449051585,0.55,3348.6,3348.0,100.0]
[1732449051785,8.99,3348.7,3348.0,100.0]
[1732449051786,0.55,3348.4,3348.0,100.0]
[1732449052086,3.55,3348.2,3348.0,93.85386885]
[1732449052444,0.58156894,3348.1,3348.0,93.85386885]
[1732449052641,10.12156894,3348.1,3348.0,84.86386885]
[1732449053478,13.22156894,3348.1,3348.0,60.98824513]
[1732449053675,13.22134709,3348.1,3348.0,59.63140272]
[1732449053992,10.22134709,3348.1,3348.0,59.63140272]
[1732449054144,13.22134709,3348.1,3348.0,59.63140272]
[1732449054353,13.32134709,3348.1,3348.0,59.63140272]
[1732449054551,13.32134709,3348.1,3348.0,58.88687459]
[1732449054848,13.32134709,3348.1,3348.0,58.28344459]
[1732449055084,13.22156894,3348.1,3348.0,58.28344459]
[1732449055349,13.32134709,3348.1,3348.0,58.28344459]
[1732449056161,13.22134709,3348.1,3348.0,58.28344459]
[1732449059103,9.67134709,3348.1,3348.0,58.28344459]
[1732449059468,9.57156894,3348.1,3348.0,58.28344459]
[1732449059668,9.67056123,3348.1,3348.0,58.28344459]
[1732449060070,9.57156894,3348.1,3348.0,58.28344459]
[1732449060312,8.99,3348.1,3348.0,58.28344459]
[1732449060777,0.1,3349.1,3348.0,58.28344459]
[1732449060778,8.99,3348.8,3348.0,58.28344459]
[1732449060977,8.99,3349.0,3348.0,58.28344459]
[1732449061165,8.99,3348.9,3348.0,58.28344459]
[1732449061371,8.99,3349.9,3348.0,58.28344459]
[1732449061615,0.1,3349.8,3348.0,58.28344459]
[1732449061819,0.59471174,3349.1,3348.0,58.28344459]
[1732449061992,8.99,3349.0,3348.0,58.28344459]
[1732449062306,0.09896122,3348.9,3348.0,58.28344459]
[1732449062604,0.55,3348.8,3348.0,58.28344459]
[1732449063044,0.55,3348.6,3348.0,58.28344459]
[1732449063842,0.55,3348.6,3348.0,58.26752941]
[1732449063843,3.65,3348.6,3348.0,58.26752941]
[1732449064044,3.53655,3348.4,3348.0,58.26752941]
[1732449064344,0.65,3348.1,3348.0,58.26752941]
[1732449064850,12.73896122,3348.1,3348.0,49.27752941]
[1732449065151,12.63896122,3348.1,3348.0,49.27752941]
[1732449066140,9.63896122,3348.1,3348.0,49.27752941]
[1732449066313,12.63896122,3348.1,3348.0,49.27752941]
[1732449068946,12.63896122,3348.1,3348.0,45.79239128]
[1732449069175,12.73896122,3348.1,3348.0,43.74705638]
[1732449069308,12.64,3348.1,3348.0,39.14323177]
[1732449069504,15.72572122,3348.1,3348.0,34.97099751]
[1732449070147,15.72572122,3348.1,3348.0,34.29978204]
[1732449070479,15.72572122,3348.1,3348.0,30.95220425]
[1732449071151,15.72572122,3348.1,3348.0,30.61935078]
[1732449071509,15.72572122,3348.1,3348.0,30.01747962]
[1732449072130,15.62572122,3348.1,3348.0,30.01747962]
[1732449072321,15.72572122,3348.1,3348.0,30.01747962]
[1732449072521,12.73896122,3348.1,3348.0,30.01747962]
[1732449072835,12.83896122,3348.1,3348.0,30.01747962]
[1732449073039,15.82572122,3348.1,3348.0,30.01747962]
[1732449073350,12.83896122,3348.1,3348.0,30.01747962]
[1732449073643,15.82572122,3348.1,3348.0,30.01747962]
[1732449073844,15.82572122,3348.1,3348.0,14.63223989]
[1732449074013,15.82572122,3348.1,3348.0,10.91399065]
[1732449074232,18.95572122,3348.1,3348.0,8.99630984]
[1732449074431,18.95572122,3348.1,3348.0,8.1704767]
[1732449074635,18.95572122,3348.1,3348.0,7.51620023]
[1732449075082,18.95572122,3348.1,3348.0,2.97391686]
[1732449075245,18.95572122,3348.1,3348.0,2.66168]
[1732449076035,18.95572122,3348.1,3348.0,2.10023187]
[1732449076236,18.95572122,3348.1,3348.0,1.80313187]
[1732449076776,18.95572122,3348.1,3348.0,0.98608773]
[1732449077134,18.95572122,3348.1,3348.0,0.50845148]
[1732449077776,15.62572122,3348.1,3348.0,0.50845148]
[1732449078000,12.82572122,3348.1,3348.0,0.20655841]
[1732449078671,2.9879,3346.9,3346.6,0.1477655]
[1732449078966,0.55,3346.7,3346.6,0.13624213]
[1732449079386,3.55,3346.7,3346.6,0.13624213]
[1732449079740,3.6482494,3346.7,3346.6,0.13624213]
[1732449081865,15.8262594,3346.7,3346.6,0.13624213]
[1732449082664,18.9562594,3346.7,3346.6,0.13624213]
[1732449082889,3.55,3345.7,3345.0,0.58876162]
[1732449083202,3.65,3345.5,3343.4,0.7637]
[1732449083378,0.55,3345.3,3343.4,0.7637]
[1732449083761,0.55,3345.1,3343.4,0.7637]
[1732449084270,0.55,3345.3,3343.4,0.7637]
[1732449084498,0.09788554,3345.0,3343.4,0.7637]
[1732449084669,0.64788554,3344.9,3344.5,0.58297541]
[1732449084877,9.50164341,3344.9,3344.5,0.58297541]
[1732449086561,0.55,3344.7,3344.5,0.58297541]
[1732449086801,3.55,3344.7,3344.5,0.58297541]
[1732449087014,3.55,3344.5,3343.5,0.7637]
[1732449087306,3.55,3344.3,3343.6,0.58900023]
[1732449087798,0.09726307,3344.2,3343.6,0.58900023]
[1732449089330,8.85375787,3344.4,3343.6,0.58900023]
[1732449089482,0.09715406,3344.3,3343.7,0.7637]
[1732449089977,3.09715406,3344.3,3343.6,0.58900023]
[1732449091501,3.09715406,3344.3,3343.7,0.7637]
[1732449091916,0.09715406,3344.3,3343.7,0.7637]
[1732449092214,3.0,3345.2,3343.7,0.7637]
[1732449092413,3.0,3345.0,3343.7,0.7637]
[1732449092613,8.95091816,3345.1,3343.7,0.7637]
[1732449092922,8.85375787,3345.1,3343.7,0.7637]
[1732449093083,0.09643506,3345.0,3343.7,0.7637]
[1732449093283,0.09643506,3345.0,3343.6,0.58900023]
[1732449093284,0.1,3344.9,3343.6,0.58900023]
[1732449093478,2.98981,3344.7,3343.4,0.7637]
[1732449093707,3.0,3344.6,3343.4,0.7637]
[1732449093924,0.09651915,3344.5,3343.4,0.7637]
[1732449094218,8.85375787,3344.4,3343.4,0.7637]
[1732449094889,0.09651915,3344.3,3343.4,0.7637]
[1732449095110,0.09651915,3344.3,3343.4,1.36297417]
[1732449095794,0.09651915,3344.3,3343.5,0.7637]
[1732449097588,0.09651915,3344.3,3343.4,0.59927417]
[1732449097983,0.09651915,3344.3,3343.3,0.1477655]
[1732449100590,0.55,3344.3,3343.3,0.1477655]
[1732449100780,8.95375787,3344.6,3343.3,0.1477655]
[1732449100781,0.09651915,3344.2,3343.3,0.1477655]
[1732449101193,0.55,3344.5,3343.3,0.1477655]
[1732449101412,0.09634783,3344.1,3343.3,0.1477655]
[1732449101588,0.55,3344.0,3343.3,0.1477655]
[1732449101917,0.64634783,3344.0,3343.3,0.1477655]
[1732449102929,0.09634783,3344.0,3343.3,0.1477655]
[1732449103083,8.85375787,3344.4,3343.3,0.1477655]
[1732449103414,0.09627931,3344.3,3343.3,0.1477655]
[1732449104537,0.55,3344.2,3343.3,0.1477655]
[1732449104693,0.09629489,3344.1,3343.3,0.1477655]
[1732449105796,0.55,3344.3,3343.3,0.1477655]
[1732449105997,0.09625439,3344.0,3343.3,0.1477655]
[1732449106230,3.0,3344.2,3343.3,0.1477655]
[1732449106531,0.55,3344.3,3343.3,0.1477655]
[1732449106743,0.09625439,3344.2,3343.3,0.1477655]
[1732449107099,3.08652439,3344.2,3343.3,0.1477655]
[1732449107707,0.42663766,3344.1,3343.3,0.1477655]
[1732449107900,0.09616403,3344.0,3343.3,0.1477655]
[1732449108232,3.08664403,3344.0,3343.3,0.1477655]
[1732449108695,2.99052,3343.9,3343.3,0.1477655]
[1732449109211,0.09616403,3343.8,3343.3,0.1477655]
[1732449109532,3.08677403,3343.8,3343.3,0.1477655]
[1732449109742,2.9907,3343.7,3343.3,0.1477655]
[1732449110247,0.09616403,3343.6,3343.3,0.1477655]
[1732449110535,2.99077,3343.7,3343.3,0.1477655]
[1732449110737,3.0868699,3343.6,3343.3,0.1477655]
[1732449111308,0.0960799,3343.6,3343.3,0.1477655]
[1732449111509,2.99075,3343.7,3343.3,0.1477655]
[1732449111730,3.0868838,3343.6,3343.3,0.1477655]
[1732449112466,3.51352146,3343.6,3343.3,0.1477655]
[1732449112761,2.99096,3343.4,3343.3,0.1477655]
[1732449113122,3.51358717,3343.4,3343.3,0.1477655]
[1732449113470,16.43783304,3343.4,3343.3,0.1477655]
[1732449114251,16.01734504,3343.4,3343.3,0.1477655]
[1732449116462,16.01734504,3343.4,3343.3,0.0977655]
[1732449117260,12.49070738,3343.4,3343.3,0.0977655]
[1732449118134,8.94974738,3343.4,3343.3,0.0977655]
[1732449119574,0.09598951,3343.4,3343.3,0.0977655]
[1732449119731,3.0,3343.7,3343.3,0.0977655]
[1732449119933,0.52219395,3343.6,3343.3,0.0977655]
[1732449120249,0.52219395,3343.6,3343.4,0.55]
[1732449120250,0.09555629,3343.6,3343.4,0.55]
[1732449120626,0.42663766,3344.4,3343.6,0.55]
[1732449121060,2.0,3344.9,3343.4,1.3435]
[1732449121268,2.0,3344.9,3343.6,0.55]
[1732449121450,2.42663766,3344.9,3343.8,0.55]
[1732449121962,2.42663766,3344.9,3343.9,0.8203]
[1732449122265,0.84712566,3344.8,3343.9,0.8203]
[1732449122437,0.42663766,3344.8,3343.9,0.8203]
[1732449122640,2.0,3344.9,3344.1,0.8203]
[1732449123171,2.0,3344.9,3344.2,0.55]
[1732449123386,2.0,3344.9,3344.3,0.8203]
[1732449123528,2.0,3344.9,3344.5,0.8203]
[1732449123733,2.0,3344.9,3344.7,0.8203]
[1732449124549,2.0,3344.9,3344.2,3.0]
[1732449124748,2.0,3344.9,3343.5,0.55]
[1732449124749,2.0,3344.9,3344.3,0.8203]
[1732449127167,0.09609526,3344.8,3344.3,0.8203]
[1732449127864,0.09609526,3344.8,3344.0,0.8203]
[1732449128457,2.98981,3344.7,3343.6,0.61078179]
[1732449128671,2.98989,3344.6,3343.4,0.8203]
[1732449128856,3.08660534,3344.6,3343.4,0.8203]
[1732449129035,0.09671534,3344.6,3343.4,0.8203]
[1732449129236,3.08668534,3344.6,3343.4,0.8203]
[1732449129578,2.98999,3344.5,3343.4,0.8203]
[1732449129877,3.08674125,3344.4,3343.4,0.8203]
[1732449130072,2.99028,3344.2,3343.4,0.8203]
[1732449130279,2.99045,3344.0,3343.4,0.8203]
[1732449130617,2.99045,3344.0,3343.3,0.0977655]
[1732449130618,2.99069,3343.8,3343.3,0.0977655]
[1732449131077,0.09656896,3343.7,3343.3,0.0977655]
[1732449131377,2.99046,3344.0,3343.3,0.0977655]
[1732449131593,3.08709896,3343.9,3343.3,0.0977655]
[1732449132076,3.08712896,3343.9,3343.3,0.0977655]
[1732449132279,0.09656896,3343.9,3343.3,0.0977655]
[1732449132488,3.08708896,3343.9,3343.3,0.0977655]
[1732449132638,2.99052,3343.9,3343.3,0.0977655]
[1732449132836,3.41698766,3344.1,3343.3,0.0977655]
[1732449132837,0.09635709,3343.8,3343.3,0.0977655]
[1732449133286,0.42663766,3344.1,3343.3,0.0977655]
[1732449133453,3.08708398,3343.7,3343.3,0.0977655]
[1732449133659,2.99085,3343.6,3343.3,0.0977655]
[1732449133855,2.99096,3343.4,3343.3,0.0977655]
[1732449134165,3.08728593,3343.4,3343.3,0.0977655]
[1732449135462,3.08728593,3343.4,3343.3,0.08988337]
[1732449135463,3.52455984,3343.4,3343.3,0.08988337]
[1732449136570,6.52455984,3343.4,3343.3,0.08988337]
[1732449137564,6.94504784,3343.4,3343.3,0.08988337]
[1732449137890,16.44880571,3343.4,3343.3,0.08988337]
[1732449138410,16.36454192,3343.4,3343.3,3.37e-06]
[1732449139193,17.22591703,3343.4,3343.3,3.37e-06]
[1732449139376,16.86018082,3343.4,3343.3,3.37e-06]
[1732449139684,16.31018082,3343.4,3343.3,3.37e-06]
[1732449139909,7.25642295,3343.4,3343.3,3.37e-06]
[1732449140188,4.25642295,3343.4,3343.3,3.37e-06]
[1732449140353,4.35642295,3343.4,3343.3,3.37e-06]
[1732449140749,4.45642295,3343.4,3343.3,3.37e-06]
[1732449141006,13.31018082,3343.4,3343.3,3.37e-06]
[1732449141151,13.86018082,3343.4,3343.3,3.37e-06]
[1732449141351,16.86018082,3343.4,3343.3,3.37e-06]
[1732449143384,16.31018082,3343.4,3343.3,3.37e-06]
[1732449144200,16.86018082,3343.4,3343.3,3.37e-06]
[1732449145393,16.86018082,3343.4,3341.3,0.816]
[1732449145394,2.99275,3341.4,3341.3,0.816]
[1732449145644,3.08773562,3341.4,3341.3,0.816]
[1732449145804,0.09498562,3341.4,3341.3,0.816]
[1732449145982,3.08773562,3341.4,3341.3,0.816]
[1732449146304,3.08773562,3341.4,3340.9,0.60480438]
[1732449146465,2.99286,3341.3,3341.0,0.816]
[1732449146668,0.09498562,3341.4,3341.0,0.816]
[1732449146967,0.09498562,3341.3,3341.0,0.816]
[1732449147174,2.99267,3341.5,3341.0,0.816]
[1732449147403,0.09498562,3341.4,3341.0,0.816]
[1732449147789,2.99293,3341.2,3341.0,0.816]
[1732449147997,2.99281,3341.4,3341.0,0.816]
[1732449148319,0.09498562,3341.3,3341.0,0.816]
[1732449148814,11.8462145,3341.8,3341.0,0.816]
[1732449148972,2.99257,3341.7,3341.0,0.816]
[1732449149170,2.99266,3341.6,3341.0,0.816]
[1732449149401,3.08720398,3341.5,3341.0,0.816]
[1732449149601,2.99277,3341.4,3341.0,0.816]
[1732449150006,0.09447398,3341.5,3341.0,0.816]
[1732449150007,0.09450207,3341.3,3341.0,0.816]
[1732449150322,2.99269,3341.5,3341.0,0.816]
[1732449150623,2.99276,3341.4,3341.0,0.816]
[1732449150791,0.09448646,3341.4,3341.0,0.816]
[1732449150990,2.99285,3341.3,3341.0,0.816]
[1732449151197,0.09448646,3341.2,3341.0,0.816]
[1732449151425,2.99235,3341.9,3341.0,0.816]
[1732449151426,2.99282,3341.4,3341.0,0.816]
[1732449151937,2.99258,3341.6,3341.0,0.816]
[1732449152227,2.99235,3341.9,3341.0,0.816]
[1732449152228,3.08733646,3341.3,3341.0,0.816]
[1732449152430,2.99295,3341.2,3341.0,0.816]
[1732449152582,2.99275,3341.4,3341.0,0.816]
[1732449152784,3.0,3341.3,3341.0,0.816]
[1732449153215,0.43727391,3341.5,3341.0,0.816]
[1732449153383,3.0,3341.6,3341.0,0.816]
[1732449153889,2.99257,3341.6,3341.0,0.816]
[1732449154222,3.0,3341.8,3341.0,0.816]
[1732449154405,2.99275,3341.5,3341.0,0.816]
[1732449154915,2.99291,3341.3,3341.0,0.816]
[1732449155634,2.99302,3341.1,3341.0,0.816]
[1732449155914,3.43012391,3341.3,3340.0,0.816]
[1732449156935,0.09448646,3341.2,3340.0,0.816]
[1732449157446,0.09448646,3341.2,3339.9,0.1477655]
[1732449157447,0.09448646,3341.2,3340.1,0.59607238]
[1732449157730,3.08742646,3341.2,3340.2,0.816]
[1732449159305,2.99302,3341.1,3340.2,0.816]
[1732449159736,0.09448646,3341.0,3340.2,0.816]
[1732449160230,0.09448646,3340.9,3340.2,0.816]
[1732449160538,0.09448646,3340.9,3339.9,0.1477655]
[1732449160539,3.43011391,3341.3,3340.8,1.424599]
[1732449160831,3.08742646,3341.2,3340.8,1.424599]
[1732449161142,0.09448646,3341.2,3340.8,1.374599]
[1732449161439,8.8537545,3341.4,3340.8,0.816]
[1732449161648,0.09448646,3341.1,3340.8,0.816]
[1732449161803,9.29102841,3341.4,3340.8,0.766]
[1732449162009,2.99293,3341.2,3340.8,0.766]
[1732449162442,0.09439283,3341.1,3340.8,0.766]
[1732449162742,8.8537545,3341.4,3340.8,0.666]
[1732449163253,0.09439283,3341.3,3340.8,0.666]
[1732449163411,0.09439283,3341.3,3340.8,0.566]
[1732449164933,2.99249,3341.7,3340.8,0.566]
[1732449165129,0.09439283,3341.6,3340.8,0.566]
[1732449165847,8.8537545,3341.8,3340.8,0.566]
[1732449166024,0.09439283,3341.5,3340.8,0.566]
[1732449166233,9.29102841,3341.8,3340.8,0.566]
[1732449166527,0.43727391,3341.8,3340.8,0.566]
[1732449166732,0.09439283,3341.7,3340.8,0.566]
[1732449167309,3.42931391,3342.2,3340.8,0.566]
[1732449167648,0.09439283,3342.1,3340.8,0.566]
[1732449167941,0.09439283,3342.1,3340.4,0.1]
[1732449167942,0.53166674,3342.1,3341.5,0.8028]
[1732449168522,0.43727391,3342.0,3341.5,0.8028]
[1732449168928,0.09439283,3341.9,3341.5,0.8028]
[1732449169150,0.53166674,3341.9,3341.5,0.8028]
[1732449169432,0.43727391,3341.8,3341.5,0.8028]
[1732449169943,2.99251,3341.7,3340.3,0.8028]
[1732449170255,2.99258,3341.6,3341.1,0.8028]
[1732449170469,3.08690283,3341.7,3341.1,0.8028]
[1732449170621,2.99251,3341.7,3341.1,0.8028]
[1732449170825,3.08697283,3341.6,3341.1,0.8028]
[1732449171133,0.53166674,3341.6,3341.1,0.8028]
[1732449171873,2.99275,3341.4,3341.1,0.8028]
[1732449172046,0.43727391,3341.4,3341.1,0.8028]
[1732449172364,0.0944927,3341.3,3341.1,0.8028]
[1732449172768,0.09282603,3341.3,3341.1,0.8028]
[1732449173132,2.99269,3341.5,3341.1,0.8028]
[1732449173330,3.08560603,3341.4,3341.1,0.8028]
[1732449173644,2.99284,3341.3,3340.4,0.6035317]
[1732449173966,8.8537545,3341.5,3340.5,0.8028]
[1732449174275,0.09282603,3341.4,3340.5,0.8028]
[1732449174484,3.08558603,3341.4,3340.5,0.8028]
[1732449174770,2.99285,3341.3,3340.5,0.8028]
[1732449175130,0.09282603,3341.2,3340.5,0.8028]
[1732449175366,2.99276,3341.4,3340.5,0.8028]
[1732449175574,0.09282603,3341.3,3340.5,0.8028]
[1732449176340,2.99276,3341.4,3340.5,0.8028]
[1732449176541,0.09282603,3341.3,3340.5,0.8028]
[1732449176746,8.8537545,3341.5,3340.5,0.8028]
[1732449176952,0.09282603,3341.4,3340.5,0.8028]
[1732449177370,3.08560603,3341.4,3340.5,0.8028]
[1732449177949,0.09282603,3341.4,3340.5,0.8028]
[1732449178477,0.09282603,3341.4,3340.7,0.7906]
[1732449179573,0.02822116,3342.1,3340.7,0.7906]
[1732449179801,0.09284475,3342.0,3340.7,0.7906]
[1732449180261,0.09284475,3342.0,3340.8,0.55]
[1732449180461,0.09284475,3342.0,3340.4,0.1]
[1732449180462,0.09284475,3342.0,3340.9,0.7906]
[1732449181048,0.09284475,3342.0,3341.7,0.7906]
[1732449181451,0.02822116,3342.1,3341.7,0.7906]
[1732449181701,0.09284475,3341.9,3341.7,0.7906]
[1732449182000,0.02822116,3342.1,3341.7,0.7906]
[1732449182001,0.09284475,3341.8,3341.7,0.7906]
[1732449182162,0.02822116,3342.1,3341.7,0.7906]
[1732449182366,0.09284475,3342.0,3341.7,0.7906]
[1732449182752,0.09284475,3342.0,3341.3,0.58264841]
[1732449182753,3.08507475,3342.0,3341.3,0.7813]
[1732449183085,0.09284475,3342.0,3341.3,0.7813]
[1732449183589,2.99266,3341.6,3341.3,0.7813]
[1732449184097,0.09284475,3341.5,3341.3,0.7813]
[1732449184598,2.99225,3342.0,3341.3,0.7813]
[1732449184750,0.09291342,3341.9,3341.3,0.7813]
[1732449184956,3.08522342,3341.9,3341.3,0.7813]
[1732449185357,2.99249,3341.7,3341.3,0.7813]
[1732449185577,3.08522342,3341.9,3341.3,0.7813]
[1732449185999,0.09291342,3341.9,3341.3,0.7813]
[1732449186793,2.99214,3342.1,3341.3,0.7813]
[1732449187011,0.09291342,3342.0,3341.3,0.7813]
[1732449187173,8.8537545,3342.2,3341.3,0.7313]
[1732449187378,3.08511342,3342.1,3341.3,0.7313]
[1732449188105,0.09291342,3342.1,3341.3,0.7313]
[1732449188870,0.40977391,3342.7,3341.3,0.7313]
[1732449189111,0.09291342,3342.0,3341.3,0.7313]
[1732449189415,2.99143,3342.9,3341.3,0.7313]
[1732449189416,11.8447545,3343.4,3341.5,0.55]
[1732449189578,2.99141,3342.9,3341.5,0.55]
[1732449189770,2.99124,3343.1,3341.4,0.1]
[1732449189971,3.08423342,3343.0,3342.1,0.61162919]
[1732449190173,3.08423342,3343.0,3342.2,0.7813]
[1732449190174,0.09291342,3343.0,3342.2,0.7813]
[1732449190393,2.9915,3342.8,3342.2,0.7813]
[1732449190814,0.09291342,3342.7,3342.2,0.7813]
[1732449191314,2.99178,3342.5,3342.2,0.7813]
[1732449191603,2.99164,3342.7,3342.2,0.7813]